bitfinex-derivatives/quotes_SOLF0:USTF0_20241002
["timestamp","ask_amount","ask_price","bid_price","bid_amount"]
[1727866571648,3.4276,145.9,145.85,3.55352]
[1727866571944,13.16,145.91,145.85,0.12502]
[1727866572143,3.428,145.88,145.85,0.12502]
[1727866572346,13.16,145.91,145.85,0.12502]
[1727866573240,3.4279,145.89,145.85,0.12502]
[1727866573436,13.16,145.91,145.85,0.12502]
[1727866573640,13.16,145.89,145.85,0.12502]
[1727866574140,18.64,145.89,145.85,0.12502]
[1727866575550,13.16,145.87,145.8,2.12518]
[1727866575845,13.16,145.86,145.8,2.12518]
[1727866576035,13.16,145.88,145.81,1.25992301]
[1727866576238,5.48,145.87,145.81,1.25992301]
[1727866576437,3.4284,145.86,145.82,3.4293]
[1727866576639,5.48,145.87,145.8,2.12518]
[1727866576948,8.9082,145.87,145.83,3.429]
[1727866577148,5.48,145.87,145.8,2.12518]
[1727866577442,13.16,145.86,145.8,2.12518]
[1727866577646,5.84,145.87,145.81,1.25993141]
[1727866577947,5.84,145.87,145.8,2.12518]
[1727866578142,3.4288,145.85,145.81,4.68933145]
[1727866578345,13.16,145.86,145.8,2.12518]
[1727866578546,13.16,145.86,145.81,1.25992242]
[1727866579345,5.84,145.86,145.81,1.25992242]
[1727866580343,3.4285,145.86,145.82,3.4292]
[1727866580541,0.12502,145.91,145.8,2.12518]
[1727866580740,13.16,145.89,145.86,3.4283]
[1727866580940,13.16,145.89,145.8,21.12518]
[1727866581143,13.16,145.89,145.81,1.25976497]
[1727866581342,3.4281,145.88,145.81,1.25976497]
[1727866581546,13.16,145.89,145.83,3.429]
[1727866581745,13.16,145.89,145.8,21.12518]
[1727866582246,13.16,145.89,145.81,1.25979849]
[1727866582751,16.5879,145.89,145.84,3.4287]
[1727866582951,13.16,145.89,145.84,3.4287]
[1727866583155,13.16,145.89,145.81,5.84]
[1727866583349,13.16,145.87,145.82,1.25980613]
[1727866583568,13.16,145.85,145.8,2.12518]
[1727866584849,13.16,145.83,145.8,2.12518]
[1727866585456,13.16,145.83,145.8,5.55498]
[1727866585746,13.16,145.83,145.8,2.12518]
[1727866586150,13.16,145.83,145.8,5.55498]
[1727866586552,13.16,145.83,145.8,2.12518]
[1727866587346,16.5891,145.83,145.8,2.12518]
[1727866588242,13.16,145.83,145.8,2.12518]
[1727866589254,19.0,145.85,145.8,2.12518]
[1727866589446,13.16,145.85,145.8,2.12518]
[1727866591656,16.5883,145.87,145.82,3.4291]
[1727866592057,16.5883,145.87,145.8,2.12518]
[1727866592557,16.5883,145.87,145.83,3.4291]
[1727866593256,13.16,145.87,145.84,3.4288]
[1727866593658,13.16,145.87,145.8,7.96518]
[1727866594659,3.4285,145.86,145.8,7.96518]
[1727866594958,3.4285,145.86,145.82,3.4292]
[1727866596964,13.16,145.87,145.8,7.96518]
[1727866597168,16.5883,145.87,145.84,3.4289]
[1727866597466,16.5883,145.87,145.8,7.96518]
[1727866597860,13.16,145.87,145.8,7.96518]
[1727866598868,16.5882,145.87,145.83,3.4289]
[1727866599766,13.16,145.87,145.84,3.4287]
[1727866600066,13.16,145.87,145.8,7.96518]
[1727866600268,16.5882,145.87,145.84,3.4287]
[1727866600465,13.16,145.87,145.84,3.4287]
[1727866601167,13.16,145.87,145.85,3.4286]
[1727866602565,16.5883,145.87,145.8,7.96518]
[1727866603066,13.16,145.87,145.8,7.96518]
[1727866603267,3.4284,145.86,145.8,2.12518]
[1727866603863,3.4284,145.86,145.83,3.429]
[1727866604265,3.4284,145.86,145.8,2.12518]
[1727866604664,3.4284,145.86,145.81,3.4294]
[1727866604865,3.4289,145.85,145.8,2.12518]
[1727866605069,13.16,145.87,145.8,2.12518]
[1727866605465,3.4285,145.86,145.8,2.12518]
[1727866605668,8.43,145.84,145.8,2.12518]
[1727866605969,8.43,145.84,145.83,3.4291]
[1727866607062,2.6433,145.9,145.8,10.55518]
[1727866607372,8.43,145.87,145.82,8.43]
[1727866607574,2.6433,145.9,145.82,9.17960743]
[1727866607775,2.6433,145.9,145.88,3.4278]
[1727866607978,2.6433,145.9,145.82,9.17960743]
[1727866608182,2.6433,145.9,145.88,3.4278]
[1727866608381,2.6433,145.9,145.82,9.17960743]
[1727866608973,6.0708,145.9,145.87,3.4282]
[1727866609565,2.6433,145.9,145.87,3.4282]
[1727866609764,1.3495,145.9,145.82,9.17960743]
[1727866609973,1.3495,145.9,145.88,3.4279]
[1727866610367,13.16,145.89,145.88,3.4279]
[1727866610566,16.5879,145.89,145.86,3.4283]
[1727866612364,16.5879,145.89,145.83,5.7]
[1727866612678,16.5879,145.89,145.87,3.4282]
[1727866612876,13.16,145.89,145.83,5.7]
[1727866613177,13.16,145.89,145.88,3.4279]
[1727866613871,13.16,145.89,145.83,5.7]
[1727866614474,3.428,145.88,145.83,5.7]
[1727866614975,16.5878,145.89,145.83,5.7]
[1727866615377,16.5878,145.89,145.86,3.4282]
[1727866616179,16.5878,145.89,145.87,3.4282]
[1727866616381,16.5878,145.89,145.83,5.7]
[1727866616884,16.5878,145.89,145.87,3.4281]
[1727866617077,13.16,145.89,145.83,5.7]
[1727866617784,13.16,145.89,145.88,3.4279]
[1727866618280,22.41242,145.91,145.89,3.4276]
[1727866618774,13.28502,145.91,145.9,3.4275]
[1727866620087,0.12502,145.91,145.9,3.4275]
[1727866622786,9.25092,145.97,145.88,2.6206]
[1727866622787,0.12502,145.97,145.95,3.4263]
[1727866623082,0.12502,145.97,145.91,5.7]
[1727866623286,0.12502,145.97,145.95,3.4261]
[1727866623492,0.12502,145.97,145.91,5.7]
[1727866623696,0.12502,145.97,145.91,9.08894983]
[1727866624389,0.12502,145.97,145.96,3.4261]
[1727866626500,13.28502,145.97,145.89,5.7]
[1727866626698,13.16,145.94,145.89,5.7]
[1727866626992,0.12502,145.97,145.88,2.6206]
[1727866626993,13.16,145.93,145.88,8.3206]
[1727866627287,13.16,145.93,145.9,3.4273]
[1727866627288,16.5868,145.93,145.9,3.4273]
[1727866627683,13.16,145.93,145.88,2.6206]
[1727866628391,13.16,145.93,145.89,3.4276]
[1727866628693,13.16,145.93,145.88,2.6206]
[1727866629095,13.16,145.93,145.9,3.4273]
[1727866629902,16.5868,145.93,145.9,3.4273]
[1727866631392,13.16,145.93,145.87,5.7]
[1727866631598,3.4272,145.92,145.88,3.4278]
[1727866633598,3.4272,145.92,145.86,5.7]
[1727866633798,3.4272,145.92,145.89,3.4277]
[1727866634395,5.7,145.94,145.86,5.7]
[1727866634595,13.16,145.95,145.86,5.7]
[1727866635394,13.28502,145.97,145.87,13.16]
[1727866635799,0.12502,145.97,145.96,3.4261]
[1727866638504,3.4247,146.02,145.99,3.4253]
[1727866638804,3.4247,146.02,145.93,22.24219305]
[1727866639303,3.4247,146.02,145.98,3.4255]
[1727866639602,0.12502,146.03,145.99,18.7]
[1727866639793,0.12502,146.03,146.02,3.4247]
[1727866640399,0.12502,146.03,146.0,8.0991]
[1727866640400,13.28502,146.09,146.0,8.0991]
[1727866641000,3.4235,146.08,146.0,8.0991]
[1727866641899,13.16,146.07,146.0,2.5591]
[1727866642100,13.16,146.05,145.97,0.12502]
[1727866642303,13.16,146.05,145.99,3.4252]
[1727866642508,3.4246,146.03,145.99,3.4252]
[1727866642708,13.16,146.05,145.99,3.4252]
[1727866643210,3.4245,146.03,145.99,3.4252]
[1727866644806,3.4242,146.04,146.0,3.4251]
[1727866645502,5.54,146.07,145.99,3.4253]
[1727866645503,16.5845,146.03,145.99,3.4253]
[1727866646301,13.16,146.03,145.97,5.66502]
[1727866646613,13.16,146.05,146.02,3.4246]
[1727866647112,16.5841,146.05,146.01,3.4247]
[1727866647310,13.16,146.05,146.01,3.4247]
[1727866647810,3.4242,146.04,146.01,3.4247]
[1727866649207,3.4247,146.02,145.99,3.4253]
[1727866649408,13.16,146.03,145.97,5.66502]
[1727866649806,13.16,146.01,145.97,5.66502]
[1727866650002,16.585,146.01,145.98,3.4255]
[1727866651514,13.16,146.01,145.97,0.12502]
[1727866651718,16.5845,146.03,146.0,3.4251]
[1727866651909,13.16,146.03,145.97,0.12502]
[1727866652107,13.16,146.03,146.01,3.4247]
[1727866652412,0.12502,146.09,145.97,0.12502]
[1727866652413,0.12502,146.09,145.99,5.54]
[1727866652614,0.12502,146.09,146.01,13.16]
[1727866652805,3.54812,146.09,146.06,3.4237]
[1727866653309,3.54812,146.09,146.01,15.7099]
[1727866653507,3.54812,146.09,146.07,3.4234]
[1727866653508,0.12502,146.09,146.07,3.4234]
[1727866654006,13.16,146.08,146.01,2.5499]
[1727866654205,13.16,146.08,146.01,8.0899]
[1727866654610,3.4237,146.06,146.03,3.4243]
[1727866654811,13.16,146.08,146.03,3.4243]
[1727866655215,3.4236,146.07,146.04,3.4241]
[1727866655616,3.4238,146.06,146.02,3.4245]
[1727866656013,13.16,146.06,146.0,1.2698]
[1727866656210,5.66502,146.09,146.0,3.4249]
[1727866656211,3.4244,146.04,146.0,3.4249]
[1727866656412,13.16,146.05,145.98,5.54]
[1727866657209,3.4246,146.03,146.0,3.4251]
[1727866658510,3.4246,146.03,145.99,3.4252]
[1727866658911,3.4246,146.03,145.98,5.54]
[1727866660412,3.4247,146.02,145.98,5.54]
[1727866660916,3.4247,146.02,145.98,8.9654]
[1727866661214,3.4247,146.02,145.98,3.4254]
[1727866661615,3.4248,146.02,145.98,3.4254]
[1727866662518,3.4248,146.02,145.99,3.4253]
[1727866664112,3.4248,146.02,145.97,5.66502]
[1727866664314,13.16,146.03,145.97,5.66502]
[1727866664720,13.16,146.03,145.97,9.09062]
[1727866665314,3.425,146.01,145.97,3.55062]
[1727866665819,13.16,146.03,145.97,0.12502]
[1727866666016,8.8877082,146.05,145.97,0.12502]
[1727866666017,13.16,146.01,145.97,0.12502]
[1727866666327,18.7,146.01,145.97,0.12502]
[1727866666622,3.4256,145.98,145.97,0.12502]
[1727866669517,3.4259,145.97,145.93,3.4267]
[1727866669820,13.16,145.97,145.93,3.4267]
[1727866670025,2.6497,146.0,145.92,13.16]
[1727866670324,3.4255,145.99,145.92,13.16]
[1727866670525,20.0084,146.01,145.92,13.16]
[1727866670717,3.4256,145.98,145.95,3.4261]
[1727866670911,18.7,146.01,145.92,13.16]
[1727866671220,18.72,146.01,145.93,1.2963]
[1727866671620,13.16,146.01,145.93,1.2963]
[1727866671821,3.4252,146.0,145.97,3.4256]
[1727866672118,13.16,146.01,145.93,1.2963]
[1727866672323,16.5851,146.01,145.95,3.4262]
[1727866672517,13.16,146.01,145.93,1.2963]
[1727866673429,1.0,146.02,145.95,13.16]
[1727866673725,0.12502,146.03,145.96,1.296]
[1727866675323,3.54952,146.03,146.0,3.425]
[1727866677527,0.12502,146.03,145.96,1.296]
[1727866677723,0.12502,146.03,145.98,5.56]
[1727866678221,0.12502,146.03,146.01,3.4247]
[1727866679029,0.12502,146.03,146.02,3.4247]
[1727866681622,0.12502,146.09,146.01,13.16]
[1727866681819,0.12502,146.09,146.06,3.4235]
[1727866682126,3.54812,146.09,146.06,3.4235]
[1727866682725,3.54812,146.09,146.07,3.4234]
[1727866683233,0.12502,146.09,146.08,3.4232]
[1727866683920,0.12502,146.09,146.03,13.16]
[1727866684327,3.54812,146.09,146.03,13.16]
[1727866684624,3.54812,146.09,146.07,3.4234]
[1727866685832,3.54812,146.09,146.03,13.16]
[1727866686030,3.4235,146.07,146.04,8.9842]
[1727866686333,3.4235,146.07,146.02,1.2621]
[1727866686334,3.4235,146.07,146.03,5.56]
[1727866686925,3.4235,146.07,146.04,3.424]
[1727866687219,0.12502,146.09,146.03,5.56]
[1727866687220,3.4234,146.08,146.03,5.56]
[1727866687631,3.4236,146.07,146.03,5.56]
[1727866687822,0.12502,146.09,146.03,5.54]
[1727866688027,13.16,146.08,146.02,1.2621]
[1727866688224,3.4241,146.05,146.02,10.2266]
[1727866689728,3.4241,146.05,146.02,4.6866]
[1727866690036,3.4241,146.05,146.02,3.4245]
[1727866690336,13.16,146.08,146.01,5.54]
[1727866690628,4.4364718,146.07,146.01,5.54]
[1727866690823,3.4242,146.04,146.01,8.9647]
[1727866691430,0.12502,146.09,146.0,1.2649]
[1727866691431,13.16,146.06,146.0,1.2649]
[1727866691628,13.16,146.06,145.98,10.2551]
[1727866691629,16.5842,146.04,145.98,10.2551]
[1727866691836,13.16,146.04,145.98,10.2551]
[1727866692034,13.16,146.04,145.98,6.8296]
[1727866692233,18.7,146.06,145.98,6.8296]
[1727866692434,4.43977965,146.05,145.98,6.8296]
[1727866692733,3.4246,146.03,146.0,3.4249]
[1727866694838,3.424,146.05,145.98,10.18632991]
[1727866695136,3.424,146.05,145.99,13.16]
[1727866695436,5.54,146.06,145.99,13.16]
[1727866695437,8.9638,146.06,146.03,3.4243]
[1727866695937,5.54,146.06,146.03,3.4243]
[1727866696434,13.16,146.08,145.99,14.4982]
[1727866696637,4.44138857,146.07,146.04,3.424]
[1727866696833,4.44138857,146.06,145.99,14.4982]
[1727866697032,4.44138857,146.06,146.01,13.16]
[1727866697236,3.54802,146.09,146.03,13.16]
[1727866697428,3.54802,146.09,146.02,5.38]
[1727866697429,4.44184926,146.08,146.02,5.38]
[1727866697637,0.12502,146.09,146.02,5.38]
[1727866697943,7.86570096,146.08,146.02,5.38]
[1727866698234,0.12502,146.09,146.02,6.6509]
[1727866698434,17.60292352,146.08,146.02,6.6509]
[1727866698645,4.44292352,146.07,146.02,6.6509]
[1727866700235,3.4237,146.06,146.03,3.4243]
[1727866702437,3.4247,146.02,145.99,4.7634]
[1727866702745,13.16,146.05,145.98,6.6696]
[1727866702946,3.4249,146.02,145.98,10.095]
[1727866703137,16.58395394,146.05,145.98,10.095]
[1727866703331,4.44804363,146.04,145.98,10.095]
[1727866703533,4.44804363,146.03,145.99,3.4253]
[1727866703738,4.44804363,146.02,145.99,3.4253]
[1727866704037,13.16,146.05,145.99,3.4253]
[1727866704341,3.4248,146.02,145.99,3.4253]
[1727866704544,13.16,146.05,146.0,3.4251]
[1727866704747,3.4245,146.03,146.0,3.4251]
[1727866705042,13.16,146.06,145.98,6.6696]
[1727866705235,4.44877198,146.05,145.99,13.16]
[1727866705439,4.44877198,146.04,145.99,14.4697]
[1727866705636,5.38,146.07,145.99,14.4697]
[1727866705850,3.4241,146.05,146.02,3.4245]
[1727866706042,3.4241,146.05,145.99,14.4697]
[1727866706348,5.38,146.07,146.03,3.4244]
[1727866706349,4.44872729,146.04,146.03,3.4244]
[1727866707748,3.4238,146.06,146.03,3.4244]
[1727866707941,4.44920632,146.05,146.03,3.4244]
[1727866709646,4.44920632,146.05,146.04,3.4242]
[1727866709845,4.44920632,146.05,145.99,14.4697]
[1727866710045,5.38,146.07,145.99,14.4697]
[1727866710250,7.87270142,146.06,146.03,3.4243]
[1727866710452,4.44900142,146.05,146.01,13.16]
[1727866710647,8.8036,146.07,146.04,3.4241]
[1727866710848,4.44906636,146.06,146.04,3.4241]
[1727866711153,3.4236,146.07,146.04,3.4241]
[1727866711351,4.44891711,146.06,146.04,3.4241]
[1727866711852,3.4236,146.07,146.04,3.4241]
[1727866712061,4.44899537,146.06,146.04,3.4241]
[1727866712256,3.4236,146.07,146.04,3.4241]
[1727866712453,7.87265555,146.06,146.04,3.4241]
[1727866712661,3.4238,146.06,146.04,3.4241]
[1727866713148,3.4241,146.05,146.02,8.8045]
[1727866713350,13.16,146.08,146.02,8.8045]
[1727866713553,4.44935878,146.07,146.02,8.8045]
[1727866713856,3.4241,146.05,146.02,8.8045]
[1727866714557,7.87355803,146.04,146.02,8.8045]
[1727866714752,3.4242,146.04,146.02,8.8045]
[1727866715443,13.16,146.08,146.02,8.8045]
[1727866715756,3.4241,146.05,146.02,8.8045]
[1727866716254,4.44932713,146.04,146.02,8.8045]
[1727866716456,3.4241,146.05,146.02,8.8045]
[1727866718958,13.16,146.08,146.02,5.38]
[1727866719161,3.4239,146.06,146.04,3.4242]
[1727866719459,4.44894999,146.05,146.04,3.4242]
[1727866719656,13.16,146.08,146.01,5.38]
[1727866719966,4.44928361,146.07,146.01,5.38]
[1727866720151,4.44928361,146.06,146.01,5.38]
[1727866720458,7.87338361,146.05,146.02,3.4245]
[1727866720657,3.4241,146.05,146.02,3.4245]
[1727866721154,3.4241,146.05,146.03,3.4244]
[1727866721458,13.16,146.08,146.01,5.38]
[1727866721664,4.4491759,146.07,146.02,3.4246]
[1727866721861,4.4491759,146.06,146.01,18.54]
[1727866722053,18.54,146.11,146.03,13.16]
[1727866722257,4.4480735,146.08,146.04,3.4241]
[1727866722456,7.8716735,146.07,146.04,3.4241]
[1727866722654,3.4236,146.07,146.04,3.4241]
[1727866722850,18.54,146.11,146.06,3.4237]
[1727866723050,4.44818419,146.08,146.03,13.16]
[1727866723355,4.44818419,146.07,146.02,1.307]
[1727866723553,13.16,146.1,146.02,1.307]
[1727866723961,3.4239,146.06,146.03,3.4244]
[1727866724257,13.16,146.1,146.02,1.307]
[1727866724465,4.44903015,146.08,146.02,1.307]
[1727866724656,3.4241,146.05,146.02,4.7315]
[1727866725854,3.4241,146.05,146.02,1.307]
[1727866726054,4.44943144,146.04,146.02,1.307]
[1727866726362,13.16,146.1,146.02,4.7316]
[1727866726556,3.4241,146.05,146.02,4.7316]
[1727866726752,13.16,146.08,146.01,5.38]
[1727866726959,4.44941791,146.07,146.01,8.8047]
[1727866727163,3.4245,146.03,146.01,8.8047]
[1727866727664,13.16,146.06,145.99,1.3097]
[1727866727860,7.85926315,146.05,145.98,7.9191]
[1727866728057,13.16,146.06,145.98,7.9191]
[1727866728058,3.4248,146.02,145.98,7.9191]
[1727866728659,3.4248,146.02,145.99,3.4252]
[1727866730755,17.61062779,146.01,145.97,0.12502]
[1727866730967,3.4256,145.98,145.97,0.12502]
[1727866733562,7.87565414,145.98,145.97,0.12502]
[1727866736066,7.87565414,145.98,145.92,5.3]
[1727866736067,4.45005414,145.98,145.91,0.12502]
[1727866736267,3.427,145.93,145.92,5.3]
[1727866736765,13.16,145.96,145.91,0.12502]
[1727866737174,3.427,145.92,145.91,0.12502]
[1727866746279,16.587,145.92,145.91,0.12502]
[1727866747181,13.16,145.92,145.85,0.12502]
[1727866747384,13.16,145.9,145.85,0.12502]
[1727866747686,8.42,145.88,145.85,0.12502]
[1727866748081,3.4284,145.87,145.85,0.12502]
[1727866748679,3.4284,145.86,145.85,0.12502]
[1727866749287,3.4283,145.87,145.85,0.12502]
[1727866750695,3.4284,145.87,145.85,0.12502]
[1727866751185,8.42,145.89,145.85,0.12502]
[1727866751387,8.42,145.87,145.85,0.12502]
[1727866752184,3.428,145.88,145.85,3.55362]
[1727866752388,8.42,145.89,145.85,0.12502]
[1727866753588,8.42,145.87,145.85,0.12502]
[1727866753794,8.42,145.86,145.85,0.12502]
[1727866753989,11.8484,145.86,145.85,0.12502]
[1727866756393,8.42,145.86,145.8,2.12518]
[1727866756698,11.8496,145.81,145.8,2.12518]
[1727866757295,8.42,145.81,145.8,2.12518]
[1727866757792,11.8496,145.81,145.8,2.12518]
[1727866758190,8.42,145.81,145.8,2.12518]
[1727866759293,11.8496,145.81,145.8,2.12518]
[1727866759591,8.42,145.81,145.8,2.12518]
[1727866762188,11.8496,145.81,145.8,2.12518]
[1727866763591,8.42,145.81,145.73,0.12502]
[1727866763796,11.8507,145.77,145.75,3.4309]
[1727866763998,8.42,145.78,145.73,8.54502]
[1727866764595,8.42,145.78,145.76,3.4306]
[1727866765391,8.42,145.78,145.73,8.54502]
[1727866765594,8.42,145.8,145.73,0.12502]
[1727866765799,8.42,145.8,145.74,8.42]
[1727866766701,3.4302,145.79,145.76,3.4306]
[1727866766890,1.2802,145.83,145.73,0.12502]
[1727866766891,8.42,145.77,145.73,0.12502]
[1727866767093,8.42,145.76,145.73,0.12502]
[1727866767297,8.42,145.74,145.73,0.12502]
[1727866767591,8.42,145.76,145.73,0.12502]
[1727866767798,11.8508,145.76,145.74,3.4311]
[1727866767998,8.42,145.76,145.73,0.12502]
[1727866769005,8.42,145.76,145.74,3.4311]
[1727866769295,8.42,145.76,145.73,0.12502]
[1727866769501,1.2802,145.83,145.75,3.431]
[1727866769502,3.4304,145.78,145.75,3.431]
[1727866769701,8.42,145.77,145.75,3.431]
[1727866770699,11.8507,145.77,145.74,3.4311]
[1727866770895,1.2802,145.83,145.73,8.54502]
[1727866771102,5.22,145.82,145.74,8.42]
[1727866771306,8.42,145.79,145.77,3.4305]
[1727866771507,8.42,145.79,145.74,13.64]
[1727866771705,1.373,145.84,145.74,13.64]
[1727866771904,8.42,145.8,145.79,3.4299]
[1727866773406,79.33169691,145.86,145.77,8.42]
[1727866773610,8.42,145.82,145.77,8.42]
[1727866774105,8.42,145.82,145.8,3.4297]
[1727866774308,11.8494,145.82,145.8,3.4297]
[1727866776098,5.34502,145.85,145.79,3.43]
[1727866776099,11.8497,145.81,145.79,3.43]
[1727866776405,8.42,145.8,145.75,8.42]
[1727866776912,11.8499,145.8,145.77,3.4303]
[1727866777705,8.42,145.8,145.77,3.4303]
[1727866777906,3.4301,145.79,145.77,3.4303]
[1727866778106,3.4301,145.79,145.75,8.42]
[1727866778107,3.4301,145.79,145.76,3.4307]
[1727866778503,3.4301,145.79,145.74,5.22]
[1727866778911,11.8499,145.8,145.77,3.4304]
[1727866779508,3.4301,145.79,145.77,3.4304]
[1727866779708,8.42,145.8,145.77,3.4304]
[1727866780411,11.8499,145.8,145.77,3.4304]
[1727866780812,11.8499,145.8,145.74,5.22]
[1727866780813,5.34502,145.85,145.74,13.64]
[1727866781017,8.42,145.8,145.78,3.4302]
[1727866781815,11.8499,145.8,145.78,3.4302]
[1727866782714,8.42,145.8,145.78,3.4302]
[1727866783715,5.22,145.84,145.76,8.42]
[1727866783920,0.12502,145.85,145.77,1.3146]
[1727866783921,8.42,145.81,145.77,1.3146]
[1727866784314,8.42,145.81,145.8,3.4298]
[1727866785413,10.54,145.81,145.8,3.4298]
[1727866789020,10.54,145.81,145.79,3.4299]
[1727866789326,10.54,145.81,145.77,1.3146]
[1727866790321,10.54,145.8,145.77,1.3146]
[1727866790626,10.54,145.8,145.78,3.4302]
[1727866791725,10.54,145.8,145.77,1.3146]
[1727866792123,10.54,145.8,145.79,3.4301]
[1727866793924,3.429,145.84,145.81,3.4294]
[1727866794118,10.54,145.83,145.77,11.8546]
[1727866795221,10.54,145.83,145.81,3.4294]
[1727866797328,13.9694,145.82,145.77,1.3146]
[1727866799027,13.9694,145.82,145.79,3.4299]
[1727866799330,13.9694,145.82,145.77,1.3146]
[1727866799829,10.54,145.82,145.77,1.3146]
[1727866800227,0.12502,145.85,145.77,11.8546]
[1727866800428,0.12502,145.85,145.82,10.54]
[1727866800630,0.12502,145.85,145.83,10.54]
[1727866800829,0.12502,145.85,145.84,3.4289]
[1727866801130,0.12502,145.85,145.84,13.9689]
[1727866801528,0.12502,145.91,145.88,3.4278]
[1727866801831,10.54,145.9,145.85,15.74]
[1727866802036,10.54,145.9,145.89,3.4277]
[1727866802332,0.12502,145.91,145.87,10.54]
[1727866802532,0.12502,145.91,145.9,3.4275]
[1727866804139,10.66502,145.91,145.89,5.2]
[1727866804340,10.66502,145.91,145.87,10.54]
[1727866804538,14.09232,145.91,145.88,8.6278]
[1727866805342,10.66502,145.91,145.88,5.2]
[1727866805943,10.66502,145.91,145.88,8.6278]
[1727866806145,0.12502,145.91,145.88,15.74]
[1727866806350,0.12502,145.91,145.9,13.9675]
[1727866807440,0.12502,145.97,145.9,10.54]
[1727866807639,0.12502,145.97,145.93,10.54]
[1727866807844,14.09102,145.97,145.94,3.4264]
[1727866808048,10.66502,145.97,145.93,10.54]
[1727866809052,14.09092,145.97,145.93,13.9666]
[1727866809553,3.55092,145.97,145.93,3.4266]
[1727866810156,3.4261,145.96,145.93,3.4266]
[1727866810354,3.4261,145.96,145.92,8.6269]
[1727866810953,3.4261,145.96,145.93,3.4267]
[1727866811254,3.55092,145.97,145.93,3.4267]
[1727866811949,16.45,145.95,145.89,2.547]
[1727866812149,16.45,145.93,145.85,16.57502]
[1727866812353,16.45,145.91,145.85,0.12502]
[1727866812544,16.45,145.89,145.85,0.12502]
[1727866813753,3.428,145.88,145.85,0.12502]
[1727866813948,16.45,145.89,145.85,0.12502]
[1727866814555,3.4279,145.89,145.85,0.12502]
[1727866814758,16.45,145.91,145.85,0.12502]
[1727866815059,3.4277,145.9,145.86,3.4283]
[1727866815651,16.45,145.91,145.86,3.4283]
[1727866815855,16.45,145.91,145.85,3.55352]
[1727866816260,16.45,145.91,145.85,0.12502]
[1727866816448,16.45,145.91,145.86,3.4283]
[1727866817351,3.428,145.88,145.86,3.4283]
[1727866818358,16.45,145.91,145.85,0.12502]
[1727866818548,3.4284,145.86,145.85,0.12502]
[1727866821856,16.45,145.87,145.79,6.65232]
[1727866822065,3.4294,145.82,145.79,6.65232]
[1727866822257,16.45,145.85,145.79,6.65232]
[1727866822863,16.45,145.87,145.79,6.65232]
[1727866823060,3.4287,145.85,145.82,3.4293]
[1727866826661,5.24,145.88,145.8,16.45]
[1727866827360,16.45,145.85,145.79,0.12502]
[1727866827867,3.4298,145.8,145.79,0.12502]
[1727866830962,3.4294,145.82,145.79,0.12502]
[1727866831462,3.4294,145.82,145.8,3.4297]
[1727866831665,3.4294,145.82,145.79,0.12502]
[1727866832066,3.4294,145.82,145.79,3.55492]
[1727866832261,3.4294,145.82,145.79,0.12502]
[1727866832464,5.24,145.84,145.79,0.12502]